Cogmind - Beta 14 @@@ ROGUE MODE // 2024.12.02 @ 16:32:05 Player: Leonulf Result: Destroyed by S-27 Virus with Autogun Performance ------------- Evolutions (3) 1500 Regions Visited (5) 1000 Robots Destroyed (44) 220 Value Destroyed (1300) 1300 Prototype IDs (0) 0 Alien Tech Used (0) 0 Bonus (500) 500 TOTAL SCORE: 4520 Bonus ------- Entered DSFs 500 Cogmind --------- Core Integrity 0/700 Matter 300/300 Energy 100/100 System Corruption 0% Temperature Cool (0) Movement Core (700) Ox13 Location -7/DSF Parts ------- > --- POWER (1) -------- (None) > --- PROPULSION (4) --- (None) > --- UTILITY (5) ------ High-capacity Storage Unit Power Shielding > --- WEAPON (3) ------- (None) > --- INVENTORY (20) --- Large Storage Unit Advanced Weight Redist. System Improved Signal Interpreter Recoil Stabilizer Improved Power Shielding Light Armor Plating Improved Medium Armor Plating Improved Medium Armor Plating System Shield Peak State ------------ > --- POWER ------------ Deuterium Engine > --- PROPULSION ------- Aluminum Leg Aluminum Leg Carbon-fiber Leg > --- UTILITY ---------- Heat Sink Advanced Heat Sink High-capacity Storage Unit Improved Sensor Array Signal Interpreter > --- WEAPON ----------- Ion Cannon Ion Cannon Ion Cannon > --- INVENTORY -------- Deuterium Engine Light Nuclear Core Light Treads Armored Treads Large Storage Unit Advanced Weight Redist. System Improved Signal Interpreter Recoil Stabilizer Power Shielding Improved Power Shielding Light Armor Plating Improved Medium Armor Plating System Shield Light EM Pulse Cannon Light EM Pulse Cannon Ion Cannon Ion Cannon [Rating: 32] Favorites ----------- Power Deuterium Engine Engine Deuterium Engine Power Core Light Nuclear Core Propulsion Aluminum Leg Treads Armored Treads Leg Aluminum Leg Utility Terrain Scanner Device Terrain Scanner Storage High-capacity Storage Unit Processor Signal Interpreter Protection Power Shielding Weapon Ion Cannon Energy Gun Small Laser Energy Cannon Ion Cannon Ballistic Gun Light Assault Rifle Build | -11 -10 -9 -8 -7 -7 ------- Run | Yrd Mat Mat Mat Fac DSF Slots Evolved 6 | . . 2 2 2 . Power . | . . . . . . Propulsion 2 | . . 2 . . . Utility 3 | . . . 2 1 . Weapon 1 | . . . . 1 . Parts Attached 58 | 6 6 18 14 4 10 Power 9 | 1 . 3 3 . 2 Engine 8 | 1 . 3 3 . 1 Core 1 | . . . . . 1 Reactor . | . . . . . . Propulsion 21 | 2 3 9 4 . 3 Treads 2 | . . . . . 2 Leg 19 | 2 3 9 4 . 1 Wheel . | . . . . . . Hover . | . . . . . . Flight . | . . . . . . Utility 11 | 1 3 . 5 1 1 Device 5 | . 1 . 3 1 . Storage 4 | 1 2 . 1 . . Processor 1 | . . . 1 . . Hackware . | . . . . . . Protection 1 | . . . . . 1 Artifact . | . . . . . . Weapon 17 | 2 . 6 2 3 4 Energy Gun 1 | . . 1 . . . Energy Cannon 13 | . . 4 2 3 4 Ballistic Gun 3 | 2 . 1 . . . Ballistic Cannon . | . . . . . . Launcher . | . . . . . . Special Weapon . | . . . . . . Impact Weapon . | . . . . . . Slashing Weapon . | . . . . . . Piercing Weapon . | . . . . . . Special Melee Weapon . | . . . . . . Unidentified Prototypes . | . . . . . . Parts Lost 28 | . . 3 6 . 19 Power 4 | . . . 1 . 3 Propulsion 12 | . . 1 5 . 6 Utility 4 | . . . . . 4 Weapon 8 | . . 2 . . 6 Highest Loss Streak 19 | . . 3 4 . 19 To Critical Strikes . | . . . . . . Average Slot Usage (%) 91 | . 93 94 95 89 56 Engine 9 | . 14 10 8 7 2 Leg 30 | . 27 39 32 23 7 Device 13 | . 8 11 18 20 13 Storage 10 | . 14 11 9 7 7 Processor 4 | . . . 9 7 2 Energy Cannon 12 | . . 11 18 23 9 Ballistic Gun 7 | . 28 9 . . . Peak Build Rating 32 | 6 8 14 28 31 32 Average Rating 16 | 3 6 11 23 30 18 On Entrance 14 | . 6 8 14 28 31 Naked Turns . | . . . . . . Heaviest Build 70 | 13 14 23 63 70 70 Greatest Support 45 | 20 20 40 45 35 40 Greatest Overweight (x) 5 | . 1 2 3 1 5 Average Overweight (x) . | . . . 1 1 1 Largest Inventory Capacity 20 | 8 20 8 20 20 20 Average Capacity 14 | 7 8 8 19 20 20 Most Carried 20 | 8 8 8 20 19 18 Average Carried 11 | 4 7 7 16 16 12 Final Capacity 20 | 8 8 8 20 20 20 Final Carried 20 | 4 8 8 20 16 9 Class Distribution -------------------- 63% | Scavenger-Mutant 33% | Mutant Dominant Class ---------------- Mutant | -10/Materials Scavenger-Mutant | -9/Materials Scavenger-Mutant | -8/Materials Scavenger-Mutant | -7/Factory Mutant | -7/DSF Resources | -11 -10 -9 -8 -7 -7 ----------- Run | Yrd Mat Mat Mat Fac DSF Matter Collected 836 | 246 197 193 125 . 75 Remotely . | . . . . . . Salvage Created 1711 | . 311 441 799 . 160 Parts 101 | . 29 25 41 . 6 Haulers Intercepted . | . . . . . . Recyclers Shooed . | . . . . . . Parts Field Recycled . | . . . . . . Retrieved Matter . | . . . . . . Parts Self-Destructed . | . . . . . . Prevented . | . . . . . . Kills | -11 -10 -9 -8 -7 -7 ------- Run | Yrd Mat Mat Mat Fac DSF Combat Hostiles Destroyed 40 | . 9 12 16 . 3 Guns 12 | . 9 3 . . . Cannons 24 | . . 9 13 . 2 Classes Destroyed 6 | . 3 1 2 . . Tunneler 1 | . 1 . . . . Recycler 2 | . . . 2 . . Watcher 1 | . . . 1 . . Swarmer 14 | . 3 4 7 . . Grunt 20 | . 6 5 6 . 3 Sentry 6 | . . 3 3 . . Best Kill Streak 5 | . 2 5 4 . 2 Combat Bots Only 5 | . 2 5 3 . 2 Max Kills in Single Turn 2 | . 1 1 2 . 1 Gunslinging . | . . . . . . Exploded . | . . . . . . Melee . | . . . . . . Uniques/NPCs Destroyed . | . . . . . . Combat | -11 -10 -9 -8 -7 -7 -------- Run | Yrd Mat Mat Mat Fac DSF Hostile Shots Fired 316 | . 41 63 69 . 143 Missed 100 | . 15 12 25 . 48 Damage Taken 3772 | . 263 654 633 . 2222 Core 892 | . 37 117 38 . 700 Absorbed by Shields . | . . . . . . Redirected to Shielding 35 | . . . . . 35 Core Remaining (%) 87 | 100 85 70 93 . . Volleys Fired 122 | . 31 30 39 . 22 Largest 3 | . 2 2 2 . 3 Hottest 180 | . 40 112 120 . 180 Shots Fired 225 | . 61 56 78 . 30 Gun 87 | . 61 26 . . . Cannon 138 | . . 30 78 . 30 Launcher . | . . . . . . Special . | . . . . . . Kinetic 86 | . 61 25 . . . Thermal 102 | . . 21 67 . 14 Explosive . | . . . . . . Electromagnetic 37 | . . 10 11 . 16 Robot Hit Streak 29 | . 10 22 29 . 12 Robot Miss Streak 4 | . 2 2 4 . 2 Penetration Max . | . . . . . . Secondary Targets 1 | . 1 . . . . Max Gunslinging Chain 1 | . 1 . . . . Shots Hit Robots 159 | . 42 41 53 . 23 Core Hits 66 | . 20 18 21 . 7 Critical Kills 2 | . 1 . 1 . . Critical Parts Destroyed 1 | . 1 . . . . Critical Strikes 3 | . 2 . 1 . . Meltdown 1 | . . . 1 . . Destroy 2 | . 2 . . . . Melee Attacks . | . . . . . . Impact . | . . . . . . Slashing . | . . . . . . Piercing . | . . . . . . Sneak Attacks . | . . . . . . Combat Hostiles . | . . . . . . Follow-up Attacks . | . . . . . . Damage Inflicted 2982 | . 447 617 1306 . 612 Guns 586 | . 447 139 . . . Cannons 2295 | . . 478 1306 . 511 Explosions 101 | . . . . . 101 Melee . | . . . . . . Ramming . | . . . . . . Kinetic 575 | . 447 128 . . . Thermal 1764 | . . 307 1146 . 311 Explosive . | . . . . . . Electromagnetic 643 | . . 182 160 . 301 Impact . | . . . . . . Slashing . | . . . . . . Piercing . | . . . . . . Highest Corruption 1 | . 1 . . . . Average Corruption 1 | . 1 . . . . Corruption Purged . | . . . . . . Corruption Blocked . | . . . . . . Effects 2 | . 2 . . . . Message Errors 1 | . 1 . . . . Weapon Failures 1 | . 1 . . . . Overload Shots . | . . . . . . Overflow Damage 29 | . . 17 12 . . Projectiles 29 | . . 17 12 . . Explosions . | . . . . . . Melee . | . . . . . . Knockbacks . | . . . . . . Impact . | . . . . . . Kinetic . | . . . . . . Secondary . | . . . . . . Self-Inflicted Damage . | . . . . . . Shots . | . . . . . . Rammed . | . . . . . . Targets Rammed . | . . . . . . Kicked . | . . . . . . Crushed . | . . . . . . Highest Temperature 196 | . 12 196 72 . . Average Temperature 44 | . 6 63 22 . . Received Heat Transfer 825 | . 105 234 252 . 234 Siege Activations . | . . . . . . Robots Corrupted 2 | . . . 1 . 1 Combat Hostiles 2 | . . . 1 . 1 Parts Fried 6 | . . 3 2 . 1 Impact Corruptions . | . . . . . . Robots Melted 2 | . . . 2 . . Combat Hostiles 2 | . . . 2 . . Parts Melted 5 | . . 2 3 . . Heat Transferred 2987 | . . 654 1850 . 483 Parts Sabotaged . | . . . . . . Parts Stolen . | . . . . . . Parts Stripped . | . . . . . . Power Chain Reactions 1 | . . . . . 1 Alert | -11 -10 -9 -8 -7 -7 ------- Run | Yrd Mat Mat Mat Fac DSF Peak Influence 330 | . 330 329 320 114 83 Initial 114 | . . 54 79 114 83 Average 144 | . 155 173 153 114 37 Maximum Alert Level 1 | . 1 1 1 . . Low Security (%) 71 | 100 60 66 70 100 100 Level 1 28 | . 39 33 29 . . Level 2 . | . . . . . . Level 3 . | . . . . . . Level 4 . | . . . . . . Level 5 . | . . . . . . High Security . | . . . . . . Max Security . | . . . . . . Squads Dispatched 7 | . 2 3 1 . 1 Investigation 2 | . 1 1 . . . Extermination . | . . . . . . Reinforcement 5 | . 1 2 1 . 1 Assault . | . . . . . . Garrison . | . . . . . . Intercept . | . . . . . . Searches Triggered . | . . . . . . Construction Impeded . | . . . . . . Haulers Reinforced . | . . . . . . Active Scanning Responses . | . . . . . . Cargo Convoy Interrupts . | . . . . . . Stealth | -11 -10 -9 -8 -7 -7 --------- Run | Yrd Mat Mat Mat Fac DSF Distress Signals 6 | . 2 1 3 . . Communications Jammed . | . . . . . . Distress Signals . | . . . . . . Times Spotted 74 | . 16 18 31 . 9 Peak Tracking Total 9 | . 3 9 6 . 5 Tactical Retreats 5 | . 2 . 2 . 1 Traps | -11 -10 -9 -8 -7 -7 ------- Run | Yrd Mat Mat Mat Fac DSF Traps Triggered 7 | . . 5 2 . . Indirectly . | . . . . . . Trap Hack Attempts . | . . . . . . Triggered . | . . . . . . Disarmed . | . . . . . . Reprogrammed . | . . . . . . Reused . | . . . . . . Traps Extracted . | . . . . . . Installed . | . . . . . . Triggered . | . . . . . . Machines | -11 -10 -9 -8 -7 -7 ---------- Run | Yrd Mat Mat Mat Fac DSF Machines Disabled 2 | . . 1 1 . . Max in Single Turn 1 | . . 1 1 . . Machines Repaired . | . . . . . . Machines Dismantled . | . . . . . . Machines Sabotaged . | . . . . . . Overloaded Fab Kills . | . . . . . . Hacking | -11 -10 -9 -8 -7 -7 --------- Run | Yrd Mat Mat Mat Fac DSF Machines Accessed 11 | . 5 2 3 1 . Terminals 7 | . 3 1 2 1 . Fabricators . | . . . . . . Repair Stations . | . . . . . . Recycling Units 3 | . 2 . 1 . . Scanalyzers 1 | . . 1 . . . Garrison Access . | . . . . . . Total Hacks 18 | . 9 5 3 1 . Successful 12 | . 5 3 3 1 . Failed 6 | . 4 2 . . . Catastrophic 3 | . 2 1 . . . Database Lockouts . | . . . . . . Manual . | . . . . . . Terminals 7 | . 3 1 2 1 . Fabricators . | . . . . . . Repair Stations . | . . . . . . Recycling Units 7 | . 6 . 1 . . Scanalyzers 4 | . . 4 . . . Garrison Access . | . . . . . . Terminal Hacks 4 | . 1 . 2 1 . Open DSF 1 | . . . . 1 . Alert Level 2 | . 1 . 1 . . Reinforcement Status 1 | . . . 1 . . Fabricator Hacks . | . . . . . . Repair Station Hacks . | . . . . . . Recycling Unit Hacks 5 | . 4 . 1 . . Process 1 | . 1 . . . . Report Inventory 3 | . 2 . 1 . . Retrieve Components 1 | . 1 . . . . Scanalyzer 3 | . . 3 . . . Insert Component 2 | . . 2 . . . Analyze 1 | . . 1 . . . Garrison Access Hacks . | . . . . . . Unauthorized Hacks . | . . . . . . Terminals . | . . . . . . Fabricators . | . . . . . . Repair Stations . | . . . . . . Recycling Units . | . . . . . . Scanalyzers . | . . . . . . Garrison Access . | . . . . . . Data Cores Recovered . | . . . . . . Used . | . . . . . . Hacking Detections 5 | . 2 2 1 . . Full Trace Events 2 | . 1 1 . . . Feedback Events 1 | . 1 . . . . Corruption 1 | . 1 . . . . Feedback Blocked . | . . . . . . Robot Schematics Acquired . | . . . . . . Robots Built . | . . . . . . Authchips . | . . . . . . Time . | . . . . . . Total Robot Build Rating . | . . . . . . Part Schematics Acquired 1 | . . 1 . . . Parts Built . | . . . . . . Authchips . | . . . . . . Time . | . . . . . . Total Part Build Rating . | . . . . . . Parts Repaired . | . . . . . . Time . | . . . . . . Parts Recycled . | . . . . . . Recycled Matter 50 | . 50 . . . . Retrieved Matter . | . . . . . . Retrieved Components 6 | . 6 . . . . Parts Scanalyzed 1 | . . 1 . . . Part Schematics Acquired 1 | . . 1 . . . Parts Damaged . | . . . . . . Bothacking | -11 -10 -9 -8 -7 -7 ------------ Run | Yrd Mat Mat Mat Fac DSF Used RIF Installer . | . . . . . . Robots Hacked . | . . . . . . Non-combat . | . . . . . . Combat . | . . . . . . Robot Hacks Applied . | . . . . . . Relay Couplers Released . | . . . . . . Fabnet Peak Effective % . | . . . . . . Robots Rewired . | . . . . . . Allies Hacked . | . . . . . . Hacks Repelled . | . . . . . . Allies | -11 -10 -9 -8 -7 -7 -------- Run | Yrd Mat Mat Mat Fac DSF Total Allies . | . . . . . . Largest Group . | . . . . . . Highest-Rated Group . | . . . . . . Highest-Rated Ally . | . . . . . . Total Orders . | . . . . . . Ally Attacks . | . . . . . . Total Damage . | . . . . . . Kills . | . . . . . . Allies Corrupted . | . . . . . . Allies Melted . | . . . . . . Intel | -11 -10 -9 -8 -7 -7 ------- Run | Yrd Mat Mat Mat Fac DSF Robot Analysis Total . | . . . . . . Derelict Logs Recovered . | . . . . . . Drone Launches . | . . . . . . Drone Recoveries . | . . . . . . Exploration | -11 -10 -9 -8 -7 -7 ------------- Run | Yrd Mat Mat Mat Fac DSF Turns Passed 2120 | 57 415 501 945 22 180 Spaces Moved 969 | 41 218 299 375 9 27 Core 11 | 10 . 1 . . . Treads 6 | . . . . . 6 Legs 952 | 31 218 298 375 9 21 Wheels . | . . . . . . Hover . | . . . . . . Flight . | . . . . . . Fastest Speed 50 | 50 120 120 190 190 190 Average Speed 151 | 102 120 122 190 190 239 Slowest Speed 470 | 120 190 190 330 190 470 Overloaded Moves . | . . . . . . Propulsion Burnouts . | . . . . . . Robots Hopped . | . . . . . . Cave-ins Triggered 1 | . . . . . 1 Exploration Rate (%) 23 | 5 39 33 33 1 29 Regions Visited 5 Branch Regions . Pre-discovered Areas . | . . . . . . Known Exits Taken 2 | . . . 1 1 . Unknown Exits Taken 3 | 1 1 1 . . . Scrap Searched . | . . . . . . Spaces Dug . | . . . . . . Terrain Destroyed 7 | . . . 5 . 2 Melee . | . . . . . . Projectile 5 | . . . 5 . . AOE 2 | . . . . . 2 Terrain Rammed . | . . . . . . Walls Destroyed . | . . . . . . Machines Disabled . | . . . . . . Actions | -11 -10 -9 -8 -7 -7 --------- Run | Yrd Mat Mat Mat Fac DSF Total 1417 | 56 320 385 528 14 114 Wait 171 | . 39 10 70 . 52 Move 964 | 40 217 298 374 8 27 Hop . | . . . . . . Pick Up 75 | 10 16 21 25 . 3 Fast Attach . | . . . . . . Attach 41 | 6 3 13 7 2 10 Detach . | . . . . . . Swap 17 | . 3 5 7 2 . Drop 27 | . 11 8 6 2 . Fire 122 | . 31 30 39 . 22 Melee . | . . . . . . Ram . | . . . . . . Kick . | . . . . . . Crush . | . . . . . . Escape Stasis . | . . . . . . Rewire . | . . . . . . Trap . | . . . . . . Miscellaneous . | . . . . . . Route ------- -11/Scrapyard -10/Materials -9/Materials -8/Materials (discovered 2 exits: *Fac / *Sto) -7/Factory -7/DSF (discovered 1 exit: [*Fac]) History --------- Turn | Location | Event 9 | -11/Scrapyard | Discovered new exit (range 15) 58 | -11/Scrapyard | Entered Materials 316 | -10/Materials | Build established: Mutant 425 | -10/Materials | Discovered new exit (range 16) 473 | -10/Materials | Entered another Materials area 473 | -9/Materials | Evolved 2 slots: Propulsion x2 825 | -9/Materials | Lost 3 parts (1n2w) 903 | -9/Materials | Build established: Scavenger-Mutant 948 | -9/Materials | Discovered new exit (range 14) 974 | -9/Materials | Entered another Materials area 974 | -8/Materials | Evolved 2 slots: Utility x2 1373 | -8/Materials | Lost 4 parts (1p3n) 1831 | -8/Materials | Discovered new exit (range 16) 1855 | -8/Materials | Discovered new exit (range 15) 1860 | -8/Materials | Identified exit to Storage 1881 | -8/Materials | Identified exit to Factory 1919 | -8/Materials | Entered Factory 1919 | -7/Factory | Evolved 2 slots: Utility x1, Weapon x1 1941 | -7/Factory | Identified exit to DSF 1941 | -7/Factory | Entered DSF 1972 | -7/DSF | Discovered new exit (range 16) 1986 | -7/DSF | Additional patrols routed to DSF 2058 | -7/DSF | Core integrity fell below 50% 2112 | -7/DSF | Crushed by falling debris 2114 | -7/DSF | Core integrity fell below 20% 2121 | -7/DSF | Destroyed by S-27 Virus with Autogun Last Messages --------------- 02069_ A-02 Transporter delivers Arm. Wheel. 02070_ Acquired 5 matter. 02074_ Slug penetrates Wall. 02079_ Knocked back. 02080_ Acquired 9 matter. 02080_ Chain reaction triggered in Rnf. Deuterium Engine. 02082_ Acquired 1 matter. 02083_ C-30 ARC bursts open, deploying its payload. 02083_ S-27 Virus unfolds itself. 02084_ Lgt. EM Pulse Cannon destroyed. 02084_ A-02 Transporter exits level. 02095_ Aluminum Leg destroyed. 02097_ Heat Sink destroyed. 02102_ Deuterium Engine destroyed. 02105_ S-27 Virus destroyed. 02107_ Arm. Treads destroyed. 02112_ The unstable cave ceiling collapses. 02112_ Crushed by falling debris. Map ----- +----------------------------------------------------+ | | | | | | | ????????????????????????????????????? | | ????????????????????????????????????? | | ????????????????????????????????????? | | ????????????????????????????????????? | | ????????????????????????????????????? | | ????????????????????????????????????? | | ????????????????????????????????????? | | ?????????""?????????????????????????? | | ????????""""????????????????????????? | | ????????"<" ????????????????????????? | | ????????"% ????????????????????????? | | ????????" ????????????????????????? | | ????????# #????????????????????????? | | ????????# ##???????????????????????? | | ???????? =????????????????????????? | | ???????? =????????????????????????? | | ???????## ###??????????????????????? | | ???????# ==#??????????????????????? | | ???????# ==#??????????????????????? | | ???????# = ???#???????????????????? | | ??????###%=####;##+##???????????????? | | ???####!!!%#;!!s;!!!#???????????????? | | ???# #!!=%#@!!!;!!!## ??????????? | | ???# "% s=%! s ????????? | | ???#### %%a[ H ????????? | | ???# ; % ?????????? | | ???#### #; #!!!#;a a?????????? | | ??????# ## #?!!#?? ??????????? | | ??????### ######??##???? ??????????? | | ???????#! !!#??????????????????????? | | ???????#! !!#??????????????????????? | | ???????#! !!#??????????????????????? | | ???????## ###??????????????????????? | | ???????# !!#??????????????????????? | | ???????# !!#??????????????????????? | | ???????## ###??????????????????????? | | ??????### ##???#???????????????????? | | ????###"" ##!!# ##??????????????? | | ???#""""" ???????????? | | ???#"##"" ^ ???????????? | | ??????#"""""## # # ==???????????? | | ??????#"""""#?###???#???????????????? | | ??????####"##???????????????????????? | | ??????????"#????????????????????????? | | ??????????"#????????????????????????? | | ????????????????????????????????????? | | ????????????????????????????????????? | +----------------------------------------------------+ Best States ------------- Heat Dissipation 63 Energy Generation 14 Energy Capacity 275 Matter Stores 300 Matter Capacity 300 Sight Range 16 Robot Scan Range 15 Terrain Scan Range 14 Terrain Scan Density 10 Power Shielding 33 Evasion (%) 55 Recoil Reduction 2 Item Schematics ----------------- Hcp. Storage Unit | -9/Materials | Scanalyzed Robot Schematics ------------------ None Fabricated ------------ Nothing Alien Tech Used ----------------- None Achievements -------------- None Challenges ------------ None Game ------ Seed LegRecyclingMediator Manual? 0 Play Time 00:37:28 Cumulative 10.7 hours Start 2024.12.02 @ 09:02:10 End 2024.12.02 @ 16:32:05 Sessions 3 Manual Loads 0 Difficulty Rogue Special Mode None Game No. 14 Rogue 14 Adventurer 0 Explorer 0 Win Type - Total 0 Types 0/0/0/0/0/0/0/0/0 Lore% 2 Gallery% 17 Achievement% 16 Wizard Run 0 Options --------- Layout 1 ASCII 0 Keyboard 0 Movement Mouse Keybinds 0 Fullscreen 1 Font 32/SmallcapsGlow Map View 50x35 Zoom Use 0% Tactical HUD 1 Map Filters NONE Filters NONE Steam 1 RUN: 5f0a5849-487c-4636-bf92-8d82d5c1e49a